fUSD/lending_fUSD_20260305
["ID","MTS","AMOUNT","RATE_DAILY","PERIOD"]
[407748206,1772743754305,-802.3,0.00017548,2]
[407748207,1772743754328,-4000.0,0.000177,2]
[407748208,1772743754350,-262.90206542,0.00017793,2]
[407748209,1772743754375,-693.3919763,0.00017793,2]
[407748210,1772743754398,-174.61919141,0.00017793,2]
[407748211,1772743754419,-246.58279002,0.00017808,2]
[407748219,1772743832066,-376.88153769,0.00017808,2]
[407748221,1772743832078,-719.04747942,0.00017848,2]
[407748223,1772743832091,-166.66,0.00017862,2]
[407748226,1772743832103,-442.92107206,0.00017866,2]
[407748228,1772743832117,-745.65223616,0.00017903,2]
[407748230,1772743832128,-175.0,0.00017957,2]
[407748231,1772743832140,-773.2413689,0.00017958,2]
[407748232,1772743832151,-299.03,0.00018009,2]
[407748233,1772743832162,-801.85129955,0.00018013,2]
[407748234,1772743832175,-831.51979763,0.00018068,2]
[407748235,1772743832186,-862.28603014,0.00018123,2]
[407748236,1772743832197,-1200.0,0.0001813,2]
[407748237,1772743832210,-300.0,0.0001813,2]
[407748238,1772743832221,-4000.0,0.00018131,2]
[407748240,1772743832232,-894.19061326,0.00018178,2]
[407748242,1772743832243,-166.66,0.00018216,2]
[407748244,1772743832254,-927.27566595,0.00018233,2]
[407748247,1772743832266,-961.58486559,0.00018288,2]
[407748248,1772743832277,-272.62944185,0.00018341,2]
[407748251,1772743832288,-181.08010149,0.00018341,2]
[407748253,1772743832299,-997.16350561,0.00018343,2]
[407748255,1772743832311,-1280.0,0.00018391,2]
[407748258,1772743832322,-174.9031329,0.00018417,2]
[407748260,1772743832333,-802.3,0.00018425,2]
[407748263,1772743832344,-277.8803,0.00018482,2]
[407748265,1772743832354,-200.0,0.00018522,2]
[407748267,1772743832366,-349.56,0.00018522,2]
[407748269,1772743832377,-328.64,0.00018523,2]
[407748271,1772743832388,-2395.7046564,0.00018527,2]
[407748272,1772743832400,-5776.0162094,0.00018529,2]
[407748273,1772743832411,-200.0,0.00018551,2]
[407748274,1772743832423,-4000.0,0.00018563,2]
[407748275,1772743832434,-166.66,0.0001857,2]
[407748276,1772743832445,-200.0,0.00018577,2]
[407748277,1772743832456,-2500.0,0.00018582,2]
[407748278,1772743832467,-8191.44936597,0.00018582,2]
[407748279,1772743832478,-7930.83799684,0.00018582,2]
[407748280,1772743832489,-3131.15334985,0.00018582,2]
[407748281,1772743832501,-285.53475651,0.00018582,2]
[407748282,1772743832511,-350.0,0.00018612,2]
[407748283,1772743832522,-200.0,0.00018632,2]
[407748284,1772743832535,-311.27011904,0.00018643,2]
[407748285,1772743832547,-1000.0,0.00018671,2]
[407748286,1772743832560,-151.0,0.00018671,2]
[407748287,1772743832574,-151.0,0.00018671,2]
[407748288,1772743832585,-500.0,0.00018671,2]
[407748289,1772743832596,-500.0,0.00018671,2]
[407748290,1772743832609,-500.0,0.00018671,2]
[407748291,1772743832620,-500.0,0.00018671,2]
[407748292,1772743832632,-500.0,0.00018671,2]
[407748293,1772743832645,-315.83417664,0.00018671,2]
[407748294,1772743832656,-500.0,0.00018671,2]
[407748295,1772743832668,-200.0,0.0001868,2]
[407748296,1772743832679,-261.891149,0.00018681,2]
[407748297,1772743832690,-500.0,0.00018681,2]
[407748298,1772743832702,-500.0,0.00018681,2]
[407748299,1772743833310,-500.0,0.00018681,2]
[407748300,1772743833350,-500.0,0.00018681,2]
[407748301,1772743833376,-250.0,0.00018681,2]
[407748302,1772743833386,-170.3158572,0.00018681,2]
[407748303,1772743833395,-500.0,0.00018681,2]
[407748304,1772743833404,-544.22255815,0.00018681,2]
[407748305,1772743833414,-206.59,0.00018681,2]
[407748306,1772743833423,-6962.45691003,0.00018682,2]
[407748307,1772743834113,-250.0,0.00018682,2]
[407748310,1772743838172,-3490.23611741,0.00018682,2]
[407748311,1772743838184,-383648.13459784,0.00018682,2]
[407748312,1772743838231,-2603.83148825,0.00018682,2]
[407748322,1772743838769,-195214.86552637,0.00018682,2]
[407748323,1772743838780,-4241.59355284,0.00018682,2]
[407748324,1772743838792,-1454.45261257,0.00018682,2]
[407748326,1772743840312,-5186.96950047,0.00018682,2]
[407748327,1772743840368,-519.56113632,0.00018682,2]
[407748328,1772743840530,-26823.58278638,0.00018682,2]
[407748329,1772743840584,-1958.3830322,0.00018682,2]
[407748331,1772743843316,-13202.61180912,0.00018682,2]
[407748337,1772743846082,-3264.03391551,0.00018682,2]
[407748338,1772743846137,-284.25888,0.00018682,2]
[407748342,1772743941666,253.83271447,0.00012,2]
[407748343,1772743955497,4680.0,0.00014,5]
[407748344,1772744150564,1861.6,0.00014503,2]
[407748345,1772744393892,367.16419196,9.95e-05,2]
[407748348,1772744453453,5000.0,0.000162,5]
[407748349,1772744550383,1109.0,0.00016152,2]
[407748350,1772744561366,1109.0,0.00015345,2]
[407748351,1772744566164,1109.0,0.0001512,2]
[407748352,1772744571035,1109.0,0.0001512,2]
[407748353,1772744729520,195.59084191,0.00016089,2]
[407748354,1772744851440,-269.30433692,0.00016912,2]
[407748357,1772744950077,-81.96878002,0.00016912,2]
[407748358,1772744950099,-387.1053702,0.00016912,2]
[407748359,1772744950121,-1200.0,0.00016999,2]
[407748360,1772744950142,-300.0,0.00016999,2]
[407748361,1772744950168,-21353.91938978,0.00017,2]
[407748362,1772744957141,-47801.81916034,0.00017,2]
[407748363,1772744957161,-113.39473208,0.00017002,2]
[407748372,1772745031831,-253.83271447,0.00017002,2]
[407748373,1772745031848,-741.77255345,0.00017002,2]
[407748374,1772745031861,-200.0,0.00017243,2]
[407748375,1772745031876,-250.0,0.00017326,2]
[407748376,1772745031889,-1500.0,0.00017418,2]
[407748377,1772745031906,-500.0,0.00017681,2]
[407748378,1772745031919,-1109.0,0.00017897,2]
[407748379,1772745031932,-350.0,0.00017913,2]
[407748381,1772745031945,-7415.88131491,0.00017927,2]
[407748383,1772745031958,-350.0,0.00017943,2]
[407748386,1772745031971,-239.23,0.00017989,2]
[407748387,1772745031984,-500.0,0.00018026,2]
[407748388,1772745031996,-500.0,0.00018026,2]
[407748391,1772745032010,-500.0,0.00018026,2]
[407748393,1772745032023,-345.0,0.00018026,2]
[407748395,1772745032036,-150.99,0.00018027,2]
[407748398,1772745032049,-9999.99,0.00018027,2]
[407748400,1772745032062,-499.99,0.00018027,2]
[407748402,1772745032074,-135188.78,0.00018027,2]
[407748404,1772745032087,-45270.43,0.00018027,2]
[407748405,1772745032100,-9999.99,0.00018027,2]
[407748406,1772745032113,-150.99,0.00018027,2]
[407748407,1772745032125,-271.45,0.00018027,2]
[407748408,1772745032138,-9999.99,0.00018027,2]
[407748409,1772745032151,-7319.42,0.00018027,2]
[407748410,1772745032164,-9999.99,0.00018027,2]
[407748411,1772745032178,-516.39,0.00018027,2]
[407748412,1772745032190,-299.99,0.00018027,4]
[407748413,1772745032203,-9999.99,0.00018027,2]
[407748414,1772745032216,-7581.3,0.00018027,2]
[407748415,1772745032231,-259.58,0.00018027,2]
[407748416,1772745032244,-999.99,0.00018027,2]
[407748417,1772745032258,-500.0,0.00018027,2]
[407748418,1772745032271,-4239.0,0.00018034,2]
[407748419,1772745032285,-700.0,0.00018082,7]
[407748420,1772745032297,-2500.0,0.00018082,7]
[407748421,1772745032310,-1557.93,0.00018082,2]
[407748422,1772745032322,-7415.8813149,0.00018146,2]
[407748423,1772745032335,-1300.0,0.00018356,7]
[407748424,1772745032349,-7415.8813149,0.00018365,2]
[407748425,1772745032361,-350.0,0.00018428,2]
[407748426,1772745032374,-7137.75419712,0.00018472,2]
[407748427,1772745032387,-2702.2159289,0.00018491,2]
[407748428,1772745037530,-500.0,0.00018521,2]
[407748429,1772745037540,-1000.0,0.00018571,2]
[407748430,1772745037549,-693.3919763,0.00018571,2]
[407748431,1772745037559,-262.90206542,0.00018571,2]
[407748432,1772745037568,-174.61919141,0.00018571,2]
[407748433,1772745037578,-500.0,0.00018571,2]
[407748434,1772745037588,-532.74,0.00018572,2]
[407748435,1772745037597,-166.67,0.00018575,2]
[407748436,1772745037606,-168.9179511,0.00018581,2]
[407748437,1772745037616,-500.0,0.00018581,2]
[407748438,1772745037625,-169.26142096,0.00018581,2]
[407748439,1772745037635,-191.57426984,0.00018581,2]
[407748440,1772745037644,-348.09313102,0.00018581,2]
[407748441,1772745037654,-213.27200961,0.00018581,2]
[407748442,1772745037663,-202.80899301,0.00018581,2]
[407748443,1772745037672,-500.0,0.00018581,2]
[407748444,1772745037683,-482.28663466,0.00018581,2]
[407748445,1772745037692,-154.636,0.00018581,2]
[407748446,1772745037702,-2161.058,0.00018581,2]
[407748447,1772745037712,-3559.0,0.00018582,2]
[407748448,1772745037721,-1927.31427401,0.00018582,2]
[407748752,1772745042572,-10593.85118993,0.00018582,2]
[407748853,1772745111927,158.17,0.0001503,2]
[407748854,1772745112711,158.17,0.0001503,2]
[407748855,1772745117833,158.17,0.0001503,2]
[407748856,1772745119387,158.15,0.0001503,2]
[407748857,1772745119770,511.0,0.00014,2]
[407748858,1772745138152,500.0,0.00012,2]
[407748859,1772745138647,500.0,0.00012,2]
[407748860,1772745138690,500.0,0.00012,2]
[407748861,1772745138810,500.0,0.00012,2]
[407748862,1772745138848,500.0,0.00012,2]
[407748863,1772745138883,527.14067579,0.00012,2]
[407748864,1772745139115,500.0,0.00012,2]
[407748865,1772745139157,500.0,0.00011291,2]
[407748866,1772745139344,500.0,0.00012,2]
[407748867,1772745139611,500.0,0.00011291,2]
[407748868,1772745139894,500.0,0.00011291,2]
[407748869,1772745140615,500.0,0.00011291,2]
[407748870,1772745142718,500.0,0.00012,2]
[407748871,1772745143214,500.0,0.00012,2]
[407748872,1772745143681,500.0,0.00012,2]
[407748873,1772745144185,500.0,0.00011291,2]
[407748874,1772745144689,500.0,0.00011291,2]
[407748875,1772745145172,504.93100996,0.00011291,2]
[407748876,1772745145410,500.0,0.00012,2]
[407748877,1772745145911,500.0,0.00012,2]
[407748878,1772745146275,671.60993507,0.00012,2]
[407748879,1772745146404,500.0,0.00011291,2]
[407748880,1772745146729,500.0,0.00012,2]
[407748881,1772745146977,505.60044076,0.00012,2]
[407748882,1772745147043,500.0,0.00012,2]
[407748883,1772745148897,500.0,0.00012,2]
[407748884,1772745149090,500.0,0.00012,2]
[407748885,1772745149629,500.0,0.00012,2]
[407748886,1772745149746,500.0,0.00012,2]
[407748887,1772745149838,500.0,0.00012,2]
[407748888,1772745149887,500.0,0.00012,2]
[407748889,1772745150335,500.0,0.00012,2]
[407748890,1772745150414,500.0,0.00011291,2]
[407748891,1772745150776,652.81102873,0.00012,2]
[407748892,1772745150808,500.0,0.00011291,2]
[407748893,1772745151572,899.8050211,0.00012,2]
[407748894,1772745151746,670.0,0.00012,2]
[407748895,1772745153070,502.36418825,0.00012,2]
[407748898,1772745220017,1370.13,0.00015471,2]
[407748899,1772745306893,687.3,0.00015471,2]
[407748900,1772745435145,319.35870181,0.00012,2]
[407748902,1772746041135,-166.66,0.00016433,2]
[407748903,1772746041156,-250.0,0.00016606,2]
[407748904,1772746041182,-2000.0,0.00016705,2]
[407748905,1772746041205,-166.66,0.00016779,2]
[407748906,1772746041229,-307.99,0.0001679,2]
[407748907,1772746041252,-1200.0,0.0001688,2]
[407748908,1772746041277,-229.0,0.0001688,2]
[407748909,1772746041298,-300.0,0.0001688,2]
[407748910,1772746041319,-300.0,0.0001688,2]
[407748911,1772746041339,-2937.22692059,0.00016881,2]
[407748912,1772746047721,-212.47445026,0.00016881,2]
[407748913,1772746155130,-3862.654707,0.00016881,2]
[407748914,1772746162075,-3671.35392215,0.00016881,2]
[407748915,1772746162104,-1500.0,0.00017,2]
[407748916,1772746162126,-1500.0,0.00017,2]
[407748917,1772746162147,-307.99,0.0001706,2]
[407748918,1772746162168,-166.66,0.00017124,2]
[407748919,1772746162187,-277.53939385,0.00017296,2]
[407748924,1772746231655,-379.77992807,0.00016819,2]
[407748926,1772746231667,-101.60007193,0.00016819,2]
[407748928,1772746231676,-300.0,0.00017296,2]
[407748930,1772746231685,-1200.0,0.00017296,2]
[407748931,1772746231694,-21.33677993,0.00017296,2]
[407748932,1772746231706,-278.66322007,0.00017296,2]
[407748933,1772746231715,-150.0,0.00017297,2]
[407748934,1772746231724,-200.0,0.00017297,2]
[407748935,1772746231734,-262.91,0.00017297,2]
[407748936,1772746231744,-9999.99,0.00017297,2]
[407748937,1772746231753,-1000.0,0.00017302,2]
[407748938,1772746231763,-550.0,0.00017302,2]
[407748939,1772746231773,-2989.1,0.00017303,2]
[407748940,1772746231783,-999.99,0.00017303,2]
[407748941,1772746231792,-150.99,0.00017303,2]
[407748942,1772746231803,-299.99,0.00017303,4]
[407748943,1772746231812,-7286.18,0.00017303,2]
[407748944,1772746231822,-9999.99,0.00017303,2]
[407748945,1772746231832,-3425.98,0.00017303,2]
[407748946,1772746231841,-499.99,0.00017303,2]
[407748947,1772746231851,-7975.38,0.00017303,2]
[407748948,1772746231861,-4335.99,0.00017303,2]
[407748949,1772746231872,-9999.99,0.00017303,2]
[407748950,1772746231883,-8717.53,0.00017303,2]
[407748951,1772746231893,-150.99,0.00017303,2]
[407748952,1772746231903,-9999.99,0.00017303,2]
[407748953,1772746231913,-2003.06957912,0.00017304,2]
[407748954,1772746231923,-307.99,0.0001733,2]
[407748955,1772746231933,-166.66,0.0001747,2]
[407748956,1772746231942,-442.94,0.00017482,2]
[407748957,1772746231952,-307.99,0.000176,2]
[407748958,1772746231963,-293.0,0.00017618,2]
[407748959,1772746231973,-481.38,0.0001766,2]
[407748960,1772746231982,-1900.0,0.000177,6]
[407748961,1772746231992,-151.0,0.00017722,2]
[407748962,1772746232002,-3240.0,0.00017725,2]
[407748963,1772746232011,-23101.38,0.00017781,2]
[407748964,1772746232020,-191.38,0.00017781,2]
[407748965,1772746232030,-784.14099321,0.000178,2]
[407748966,1772746232039,-1841.72250529,0.000178,2]
[407748967,1772746232049,-2031.12535627,0.000178,2]
[407748968,1772746232058,-2220.52820732,0.000178,2]
[407748969,1772746232071,-159.03297078,0.000178,2]
[407748970,1772746232080,-190.36217046,0.000178,2]
[407748971,1772746232089,-203.82359478,0.000178,2]
[407748972,1772746232099,-181.42828278,0.000178,2]
[407748973,1772746232108,-3900.0,0.000178,6]
[407748974,1772746232118,-379.05,0.00017808,2]
[407748975,1772746232127,-4548.448,0.00017808,2]
[407748976,1772746232136,-800.0,0.00017808,2]
[407748977,1772746232146,-166.66,0.00017816,2]
[407748978,1772746232155,-42197.91913359,0.00017817,2]
[407748979,1772746232164,-405.15700364,0.00017823,2]
[407748980,1772746232174,-693.3919763,0.00017823,2]
[407748981,1772746232183,-262.90206542,0.00017823,2]
[407748982,1772746232192,-174.61919141,0.00017823,2]
[407748983,1772746232202,-2781.1927,0.00017824,2]
[407748984,1772746232211,-22797.85876698,0.00017827,2]
[407748985,1772746232221,-1000.0,0.00017827,2]
[407748986,1772746232234,-500.0,0.00017863,2]
[407748987,1772746232244,-241.0,0.00017864,2]
[407748988,1772746232254,-307.99,0.0001787,2]
[407748989,1772746232264,-719.04747942,0.00017878,2]
[407748990,1772746232275,-151.0,0.00017897,2]
[407748991,1772746232285,-5900.0,0.000179,6]
[407748992,1772746232296,-151.0,0.00017917,2]
[407748993,1772746232306,-1000.0,0.00017917,2]
[407748994,1772746232317,-500.0,0.00017917,2]
[407748995,1772746232326,-151.0,0.00017917,2]
[407748996,1772746232335,-500.0,0.00017917,2]
[407748997,1772746232345,-151.0,0.00017917,2]
[407748998,1772746232355,-500.0,0.00017917,2]
[407748999,1772746232370,-151.0,0.00017917,2]
[407749000,1772746232379,-500.0,0.00017917,2]
[407749001,1772746232389,-151.0,0.00017917,2]
[407749002,1772746232397,-151.0,0.00017917,2]
[407749003,1772746232407,-151.0,0.00017917,2]
[407749004,1772746232416,-151.0,0.00017917,2]
[407749005,1772746232425,-151.0,0.00017917,2]
[407749006,1772746232435,-200.0,0.00017917,2]
[407749007,1772746232445,-500.0,0.00017917,2]
[407749008,1772746232454,-500.0,0.00017917,2]
[407749009,1772746232464,-500.0,0.00017917,2]
[407749010,1772746232474,-500.0,0.00017917,2]
[407749011,1772746232483,-500.0,0.00017917,2]
[407749012,1772746232493,-500.0,0.00017917,2]
[407749013,1772746232503,-500.0,0.00017917,2]
[407749014,1772746232513,-500.0,0.00017917,2]
[407749015,1772746232523,-500.0,0.00017917,2]
[407749016,1772746232533,-151.0,0.00017917,2]
[407749017,1772746232542,-500.0,0.00017917,2]
[407749018,1772746232551,-151.0,0.00017917,2]
[407749019,1772746232562,-151.0,0.00017917,2]
[407749020,1772746232573,-151.0,0.00017917,2]
[407749021,1772746232582,-151.0,0.00017917,2]
[407749022,1772746232592,-151.0,0.00017917,2]
[407749023,1772746232602,-151.0,0.00017917,2]
[407749024,1772746232611,-151.0,0.00017917,2]
[407749025,1772746232622,-151.0,0.00017917,2]
[407749026,1772746232631,-151.0,0.00017917,2]
[407749027,1772746232640,-151.0,0.00017917,2]
[407749028,1772746232650,-151.0,0.00017917,2]
[407749029,1772746232660,-151.0,0.00017917,2]
[407749030,1772746232669,-151.0,0.00017917,2]
[407749031,1772746232679,-151.0,0.00017917,2]
[407749032,1772746232688,-151.0,0.00017917,2]
[407749033,1772746232697,-151.0,0.00017917,2]
[407749034,1772746232707,-151.0,0.00017917,2]
[407749035,1772746232717,-151.0,0.00017917,2]
[407749036,1772746232727,-151.0,0.00017917,2]
[407749037,1772746232736,-151.0,0.00017917,2]
[407749038,1772746232745,-151.0,0.00017917,2]
[407749039,1772746232755,-151.0,0.00017917,2]
[407749040,1772746232764,-234.63590618,0.00017917,2]
[407749041,1772746232773,-500.0,0.00017919,2]
[407749042,1772746232783,-500.0,0.00017919,2]
[407749043,1772746232792,-500.0,0.00017919,2]
[407749044,1772746232801,-500.0,0.00017919,2]
[407749045,1772746232810,-500.0,0.00017919,2]
[407749046,1772746232819,-500.0,0.00017919,2]
[407749047,1772746232828,-500.0,0.00017919,2]
[407749048,1772746232837,-500.0,0.00017919,2]
[407749049,1772746232847,-500.0,0.00017919,2]
[407749050,1772746232856,-500.0,0.00017919,2]
[407749051,1772746232865,-500.0,0.00017919,2]
[407749052,1772746232874,-500.0,0.00017919,2]
[407749053,1772746232884,-500.0,0.00017919,2]
[407749054,1772746232893,-500.0,0.00017919,2]
[407749055,1772746232902,-500.0,0.00017919,2]
[407749056,1772746232911,-500.0,0.00017919,2]
[407749057,1772746232920,-500.0,0.00017919,2]
[407749058,1772746232930,-500.0,0.00017919,2]
[407749059,1772746232939,-500.0,0.00017919,2]
[407749060,1772746232948,-500.0,0.00017919,2]
[407749061,1772746232958,-500.0,0.00017919,2]
[407749062,1772746232967,-500.0,0.00017919,2]
[407749063,1772746232976,-500.0,0.00017919,2]
[407749064,1772746232986,-500.0,0.00017919,2]
[407749065,1772746232996,-500.0,0.00017919,2]
[407749066,1772746233005,-500.0,0.00017919,2]
[407749067,1772746233014,-500.0,0.00017919,2]
[407749068,1772746233023,-500.0,0.00017919,2]
[407749069,1772746233033,-500.0,0.00017919,2]
[407749070,1772746233042,-500.0,0.00017919,2]
[407749071,1772746233052,-500.0,0.00017919,2]
[407749072,1772746233061,-500.0,0.00017919,2]
[407749073,1772746233070,-500.0,0.00017919,2]
[407749074,1772746233079,-500.0,0.00017919,2]
[407749075,1772746233089,-500.0,0.00017919,2]
[407749076,1772746233099,-500.0,0.00017919,2]
[407749077,1772746233108,-500.0,0.00017919,2]
[407749078,1772746233117,-500.0,0.00017919,2]
[407749079,1772746233126,-500.0,0.00017919,2]
[407749080,1772746233135,-500.0,0.00017919,2]
[407749081,1772746233143,-500.0,0.00017919,2]
[407749082,1772746233153,-500.0,0.00017919,2]
[407749083,1772746233162,-500.0,0.00017919,2]
[407749084,1772746233172,-500.0,0.00017919,2]
[407749085,1772746233181,-500.0,0.00017919,2]
[407749086,1772746233190,-500.0,0.00017919,2]
[407749087,1772746233200,-500.0,0.00017919,2]
[407749088,1772746233208,-500.0,0.00017919,2]
[407749089,1772746233218,-500.0,0.00017919,2]
[407749090,1772746233227,-500.0,0.00017919,2]
[407749091,1772746233242,-500.0,0.00017919,2]
[407749092,1772746233251,-500.0,0.00017919,2]
[407749093,1772746233261,-532.32021676,0.00017919,2]
[407749094,1772746233271,-500.0,0.00017919,2]
[407749095,1772746233281,-500.0,0.00017919,2]
[407749096,1772746233290,-500.0,0.00017919,2]
[407749097,1772746233301,-500.0,0.00017919,2]
[407749098,1772746233316,-500.0,0.00017919,2]
[407749099,1772746233325,-500.0,0.00017919,2]
[407749100,1772746233335,-499.99999999,0.00017919,2]
[407749101,1772746233344,-144769.62966439,0.0001792,2]
[407749102,1772746233354,-151.0,0.0001792,2]
[407749103,1772746233363,-151.0,0.0001792,2]
[407749104,1772746233372,-151.0,0.0001792,2]
[407749105,1772746233382,-210.84861,0.0001792,2]
[407749106,1772746233392,-151.0,0.0001792,2]
[407749107,1772746233401,-508.458895,0.0001792,2]
[407749108,1772746233412,-508.458895,0.0001792,2]
[407749109,1772746233422,-508.458895,0.0001792,2]
[407749110,1772746233433,-151.0,0.0001792,2]
[407749111,1772746233445,-151.0,0.0001792,2]
[407749112,1772746233455,-508.458895,0.0001792,2]
[407749113,1772746233464,-151.0,0.0001792,2]
[407749114,1772746233474,-151.0,0.0001792,2]
[407749115,1772746233484,-151.0,0.0001792,2]
[407749116,1772746233493,-151.0,0.0001792,2]
[407749117,1772746233503,-151.0,0.0001792,2]
[407749118,1772746233512,-275.695779,0.0001792,2]
[407749119,1772746233521,-275.695779,0.0001792,2]
[407749120,1772746233530,-275.695779,0.0001792,2]
[407749121,1772746233539,-275.695779,0.0001792,2]
[407749122,1772746233548,-151.0,0.00017924,2]
[407749123,1772746233557,-359.00372042,0.00017926,2]
[407749124,1772746233566,-215.12604343,0.00017926,2]
[407749125,1772746233576,-500.0,0.00017926,2]
[407749126,1772746233586,-541.26597531,0.00017926,2]
[407749127,1772746233595,-500.0,0.00017926,2]
[407749128,1772746233605,-151.0,0.00017927,2]
[407749129,1772746233614,-151.0,0.00017927,2]
[407749130,1772746233623,-151.0,0.00017927,2]
[407749131,1772746233633,-151.0,0.00017927,2]
[407749132,1772746233642,-151.0,0.00017927,2]
[407749133,1772746233652,-151.0,0.00017927,2]
[407749134,1772746233662,-151.0,0.00017927,2]
[407749135,1772746233672,-151.0,0.00017927,2]
[407749136,1772746233681,-151.0,0.00017927,2]
[407749137,1772746233692,-151.0,0.00017927,2]
[407749138,1772746233702,-151.0,0.00017927,2]
[407749139,1772746233712,-151.0,0.00017927,2]
[407749140,1772746233722,-151.0,0.00017927,2]
[407749141,1772746233732,-151.0,0.00017927,2]
[407749142,1772746233741,-151.0,0.00017927,2]
[407749143,1772746233750,-151.0,0.00017927,2]
[407749144,1772746233760,-151.0,0.00017927,2]
[407749145,1772746233770,-151.0,0.00017927,2]
[407749146,1772746233779,-151.0,0.00017927,2]
[407749147,1772746233791,-151.0,0.00017927,2]
[407749148,1772746233800,-151.0,0.00017927,2]
[407749149,1772746233810,-151.0,0.00017927,2]
[407749150,1772746233819,-151.0,0.00017927,2]
[407749151,1772746233829,-249.030956,0.00017927,2]
[407749152,1772746233838,-151.0,0.00017927,2]
[407749153,1772746233847,-151.0,0.00017927,2]
[407749154,1772746233856,-151.0,0.00017927,2]
[407749155,1772746233866,-508.458895,0.00017927,2]
[407749156,1772746233877,-508.458895,0.00017927,2]
[407749157,1772746233887,-508.458895,0.00017927,2]
[407749158,1772746233896,-508.458895,0.00017927,2]
[407749159,1772746233906,-508.458895,0.00017927,2]
[407749160,1772746233915,-508.458895,0.00017927,2]
[407749161,1772746233924,-151.0,0.00017927,2]
[407749162,1772746233934,-151.0,0.00017927,2]
[407749163,1772746233943,-508.458895,0.00017927,2]
[407749164,1772746233952,-151.0,0.00017927,2]
[407749165,1772746233961,-508.458895,0.00017927,2]
[407749166,1772746233971,-151.0,0.00017927,2]
[407749167,1772746233981,-151.0,0.00017927,2]
[407749168,1772746233990,-151.0,0.00017927,2]
[407749169,1772746233999,-151.0,0.00017927,2]
[407749170,1772746234008,-151.0,0.00017927,2]
[407749171,1772746234017,-151.0,0.00017927,2]
[407749172,1772746234026,-151.0,0.00017927,2]
[407749173,1772746234035,-151.0,0.00017927,2]
[407749174,1772746234045,-151.0,0.00017927,2]
[407749175,1772746234054,-151.0,0.00017927,2]
[407749176,1772746234064,-275.695779,0.00017927,2]
[407749177,1772746234074,-275.695779,0.00017927,2]
[407749178,1772746234084,-275.695779,0.00017927,2]
[407749179,1772746234093,-275.695779,0.00017927,2]
[407749180,1772746234102,-275.695779,0.00017927,2]
[407749181,1772746234111,-275.695779,0.00017927,2]
[407749182,1772746234120,-275.695779,0.00017927,2]
[407749183,1772746234131,-275.695779,0.00017927,2]
[407749184,1772746234142,-307016.789,0.00017927,2]
[407749185,1772746234152,-354965.68272042,0.00017927,2]
[407749186,1772746234167,-125045.86214398,0.00017927,2]
[407749187,1772746234181,-197309.26240151,0.00017927,2]
[407749188,1772746234194,-24056.09313409,0.00017927,2]
[407749189,1772746234203,-32891.4421,0.00017927,2]
[407749190,1772746234212,-745.65223616,0.00017933,2]
[407749191,1772746234221,-1000.0,0.00017955,2]
[407749192,1772746234233,-773.2413689,0.00017988,2]
[407749193,1772746234242,-2609.2944582,0.00018,2]
[407749194,1772746234251,-500.0,0.00018027,2]
[407749195,1772746234260,-500.0,0.00018027,2]